[Event "Icelandic Chess-ch 2023"]
[Site "Hafnarfjordur"]
[Date "2023.05.24"]
[Round "10.1"]
[White "Ptacnikova, Lenka"]
[Black "Danielsen, Henrik"]
[Result "0-1"]
[ECO "B07"]
[WhiteElo "2099"]
[BlackElo "2501"]
[Annotator "TA"]
[PlyCount "50"]
[EventDate "2023.05.13"]
[EventType "tourn"]
[EventCountry "ISL"]
[SourceTitle "playchess.com"]
[Source "ChessBase"]
[SourceQuality "1"]
[TimeControl "40/5400+30:1800+30"]

{[%evp 13,50,46,72,0,50,-10,81,0,72,52,56,56,56,-50,-46,-31,-40,-39,-52,-118,-111,-115,-117,-176,-169,-208,-209,-404,-381,-391,-289,-370,-341,-355,-268,-866,-851,-29997,-29998]} 1. d4 {[%emt 0:00:03]} Nf6 {[%emt 0:00:18]} 2. Nc3 {[%emt 0:00:09]} d6 {[%emt 0:01:14]} 3. e4 {[%emt 0:01:25]} g6 {[%emt 0:00:10]} 4. Bf4 {[%emt 0:02:41]} c6 {[%emt 0:01:54]} 5. Qd2 {[%emt 0:00:30]} Bg7 {[%emt 0:04:41]} 6. Bh6 {[%emt 0:00:46]} Bxh6 {[%emt 0:01:41]} 7. Qxh6 {[%emt 0:00:04]} Qa5 {[%emt 0:04:01]} 8. O-O-O {[%emt 0:05:21] B07: Pirc Defence: Miscellaneous Systems.} (8. Bd3 $1 $16) 8... Be6 {[%emt 0:00:18] [#]} ({Black should play} 8... b5 $11) 9. d5 {[%emt 0:12:07]} Bd7 {[%emt 0:04:56] [#]} (9... cxd5 $11 10. exd5 Bxd5) 10. Kb1 $146 {[%emt 0:09:54]} (10. a3 $1 $16) ({Predecessor:} 10. Nf3 b5 11. dxc6 Bxc6 12. e5 Nh5 13. exd6 b4 14. dxe7 Nd7 15. Nb1 Rc8 16. Nd4 Kxe7 {1-0 Vergara Jofre,F (2234)-Sanchez Lopez,J (2088) Barcelona Sant Marti op-A 19th 2017 (8)}) 10... Na6 {[%emt 0:02:29]} (10... b5 $1 $11 {keeps the balance.}) 11. f3 {[%emt 0:17:16]} b5 {[%emt 0:02:03][%cal Bb7b5,Bb5b4][%mdl 32]} 12. dxc6 {[%emt 0:05:30]} Bxc6 {[%emt 0:00:34]} 13. Nge2 {[%emt 0:11:32]} (13. Nh3 $14) 13... b4 $1 $15 {[%emt 0:01:00]} 14. Nd5 {[%emt 0:00:03]} Nxd5 {[%emt 0:01:06]} 15. exd5 {[%emt 0:00:04]} Bxd5 {[%emt 0:00:14]} 16. b3 {[%emt 0:05:19] [#]} (16. Nc1 $15 Nc7 17. Bd3) 16... Nc7 $1 $17 {[%emt 0:00:47][%cal Oc7b5]} 17. Nf4 {[%emt 0:01:40]} O-O-O {[%emt 0:09:14]} 18. h4 {[%emt 0:06:03]} (18. Bd3 $17) 18... e5 $19 {[%emt 0:00:46]} 19. Nh3 {[%emt 0:00:07]} Be6 {[%emt 0:01:01]} 20. Bc4 $2 {[%emt 0:02:02]} (20. a4) 20... Bxc4 {[%emt 0:01:34]} 21. bxc4 {[%emt 0:00:04]} Qc5 {[%emt 0:00:07]} 22. Rhe1 {[%emt 0:00:40]} Qxc4 {[%emt 0:00:53] Hoping for ...Nb5.} 23. Re4 {[%emt 0:01:32]} Qc5 {[%emt 0:00:21]} 24. Ng5 $2 {[%emt 0:02:29]} (24. Qe3) 24... Nb5 {[%emt 0:00:37]} 25. Nxf7 {[%emt 0:00:25]} Na3+ {[%emt 0:00:13] Weighted Error Value: White=0.98/Black=0.31} 0-1

[Event "Icelandic Chess-ch 2023"]
[Site "Hafnarfjordur"]
[Date "2023.05.24"]
[Round "10.2"]
[White "Domalchuk-Jonasson, Aleksandr"]
[Black "Ragnarsson, Dagur"]
[Result "1/2-1/2"]
[ECO "A34"]
[WhiteElo "2338"]
[BlackElo "2346"]
[Annotator "TA"]
[PlyCount "94"]
[EventDate "2023.05.13"]
[EventType "tourn"]
[EventCountry "ISL"]
[SourceTitle "playchess.com"]
[Source "ChessBase"]
[SourceQuality "1"]
[TimeControl "40/5400+30:1800+30"]

{[%evp 17,94,25,21,18,31,10,8,0,0,0,3,-41,-33,-41,-31,-56,-30,-41,0,-15,-1,0,17,3,0,0,13,0,0,0,20,0,0,-2,-7,-12,13,13,13,-48,0,-12,0,0,0,-31,0,0,0,-72,-72,-67,-32,-55,-55,-57,-57,-57,-57,-50,-25,-53,-46,-54,-54,-54,-61,-80,0,0,0,0,0,0,0,0,0,0,0]} 1. c4 {[%emt 0:00:05]} c5 {[%emt 0:01:01]} 2. Nf3 {[%emt 0:00:53]} Nc6 {[%emt 0:00:08]} 3. Nc3 {[%emt 0:00:24]} e6 {[%emt 0:01:51]} 4. g3 {[%emt 0:02:32]} Nge7 {[%emt 0:03:43]} 5. Bg2 {[%emt 0:06:53]} d5 {[%emt 0:10:26]} 6. cxd5 {[%emt 0:01:49]} Nxd5 {[%emt 0:00:06]} 7. Nxd5 {[%emt 0:03:52]} Qxd5 {[%emt 0:00:12]} 8. O-O {[%emt 0:01:07]} Be7 {[%emt 0:01:14]} 9. d3 {[%emt 0:04:15]} O-O {[%emt 0:00:24]} 10. Bf4 {[%emt 0:01:40][%cal Of3e5] [#] And now Ne5! would win. A34: Symmetrical English: 2 Nc3, lines with ...d5.} Qd8 {[%emt 0:07:48]} 11. Rc1 {[%emt 0:10:00] [#]} Qb6 $146 {[%emt 0:19:20]} ({Predecessor:} 11... Bd7 12. Be3 Qa5 13. a3 Rac8 14. Nd2 b6 15. Nc4 Qa6 16. Bf4 Nd4 17. b3 Bc6 18. Bh3 Rfd8 19. Be5 {½-½ MacKenzie,C (2060)-Humphreys,J (1997) BCF-chT2c 1516 (4NCL) 2015 (11.236)}) 12. Qd2 {[%emt 0:12:37]} f6 {[%emt 0:02:23]} 13. Be3 {[%emt 0:10:13]} e5 {[%emt 0:00:41]} 14. b3 {[%emt 0:08:07]} Be6 {[%emt 0:02:48]} 15. Qb2 {[%emt 0:03:10]} Rac8 {[%emt 0:04:52]} 16. Rb1 {[%emt 0:04:20]} a5 {[%emt 0:01:51]} 17. Rfc1 {[%emt 0:01:24]} Nd4 {[%emt 0:00:33]} 18. Nxd4 {[%emt 0:03:51]} exd4 {[%emt 0:16:53]} 19. Bd2 {[%emt 0:01:09]} Qa7 {[%emt 0:01:59]} 20. Re1 {[%emt 0:07:27]} b5 {[%emt 0:01:46]} 21. e3 {[%emt 0:04:27]} Bf5 {[%emt 0:01:23]} 22. Bd5+ {[%emt 0:01:18]} Kh8 {[%emt 0:00:06]} 23. e4 {[%emt 0:00:03]} Bg4 {[%emt 0:00:40]} 24. Kg2 {[%emt 0:01:23]} Qd7 {[%emt 0:01:42]} 25. f3 {[%emt 0:01:00]} Bh3+ {[%emt 0:00:08]} 26. Kg1 {[%emt 0:00:18]} Be6 {[%emt 0:04:04]} 27. Bxe6 {[%emt 0:00:13]} Qxe6 {[%emt 0:00:05]} 28. Rbc1 {[%emt 0:04:11]} (28. a4 $11) 28... Bd6 {[%emt 0:04:06]} (28... a4 $1 $15) 29. Qc2 {[%emt 0:02:31]} f5 {[%emt 0:05:40]} 30. e5 {[%emt 0:00:21]} Be7 {[%emt 0:00:05][%cal Of5f4]} 31. f4 {[%emt 0:00:45]} h5 {[%emt 0:00:32][%cal Oa5a4]} 32. Qd1 {[%emt 0:01:16]} g6 {[%emt 0:00:16][%cal Oa5a4]} 33. Qe2 {[%emt 0:00:43]} ({Much worse is} 33. Bxa5 b4 34. a3 bxa3 $15) (33. a4 $11) 33... Ra8 $17 {[%emt 0:03:06]} 34. Rb1 {[%emt 0:02:12]} b4 {[%emt 0:00:22]} 35. Rec1 {[%emt 0:00:44]} a4 {[%emt 0:00:12]} 36. Rc2 {[%emt 0:00:28]} axb3 {[%emt 0:01:05]} 37. axb3 {[%emt 0:00:03]} Ra3 {[%emt 0:00:41]} 38. Rcb2 {[%emt 0:00:03]} Kg7 {[%emt 0:02:29]} 39. h4 {[%emt 0:00:16]} Kf7 {[%emt 0:00:17]} 40. Bc1 {[%emt 0:00:30]} Rfa8 {[%emt 0:01:55]} 41. Qc2 {[%emt 0:02:26]} Qd5 {[%emt 0:05:50] Threatens to win with ...Qf3.} 42. Qc4 {[%emt 0:02:34]} Ke6 {[%emt 0:00:49]} (42... Qxc4 $17 43. dxc4 Ra1) 43. Kf2 $11 {[%emt 0:02:15][%cal Bg1f2,Bf2e2,Be2d1][%mdl 32] The position is equal.} Ra1 {[%emt 0:00:42]} 44. Ke2 {[%emt 0:00:32]} R8a2 {[%emt 0:02:55]} 45. Rxa1 {[%emt 0:00:24]} Rxa1 {[%emt 0:00:06]} 46. Kd1 {[%emt 0:00:11]} Qxc4 {[%emt 0:00:11]} 47. dxc4 {[%emt 0:00:09]} Bd8 {[%emt 0:00:10] Weighted Error Value: White=0.11 (very precise) /Black=0.09 (flawless)} 1/2-1/2

[Event "Icelandic Chess-ch 2023"]
[Site "Hafnarfjordur"]
[Date "2023.05.24"]
[Round "10.3"]
[White "Ingvason, Johann"]
[Black "Kjartansson, Gudmundur"]
[Result "1-0"]
[ECO "E16"]
[WhiteElo "2076"]
[BlackElo "2402"]
[Annotator "TA"]
[PlyCount "99"]
[EventDate "2023.05.13"]
[EventType "tourn"]
[EventCountry "ISL"]
[SourceTitle "playchess.com"]
[Source "ChessBase"]
[SourceQuality "1"]
[TimeControl "40/5400+30:1800+30"]

{[%evp 17,99,16,6,12,17,0,0,6,14,4,17,0,7,0,0,-16,6,8,19,1,1,4,21,-3,-5,-5,-6,-33,0,-60,-64,-103,-105,-102,-102,-122,-116,-107,-105,-136,-67,-135,-136,-136,-78,-78,-78,-78,-79,-87,0,0,0,-560,0,0,146,146,139,135,322,104,12836,12837,12836,8715,12841,12841,12845,12846,29989,12845,12846,12846,12847,12847,12847,12847,12848,12848,12849,12848,12849,12850]} 1. d4 {[%emt 0:02:23]} d5 {[%emt 0:01:12]} 2. c4 {[%emt 0:00:12]} e6 {[%emt 0:01:57]} 3. g3 {[%emt 0:00:10]} Nf6 {[%emt 0:00:52]} 4. Bg2 {[%emt 0:00:20]} Bb4+ {[%emt 0:00:51]} 5. Nd2 {[%emt 0:00:32]} O-O {[%emt 0:00:07]} 6. Ngf3 {[%emt 0:01:02]} b6 {[%emt 0:00:47]} 7. O-O {[%emt 0:00:24]} Bb7 {[%emt 0:00:24]} 8. a3 {[%emt 0:00:05]} Be7 {[%emt 0:00:16]} 9. cxd5 {[%emt 0:00:11]} exd5 {[%emt 0:00:35]} 10. b4 {[%emt 0:00:16] E16: Queen's Indian: 4 g3 Bb7 5 Bg2 Bb4+.} Nbd7 {[%emt 0:01:54][%cal Bb8d7,Bd7c5,Bc5a4,Ba4c3][%mdl 32]} 11. Bb2 {[%emt 0:01:37]} c5 {[%emt 0:00:52]} 12. dxc5 {[%emt 0:00:05] The position is equal.} bxc5 {[%emt 0:00:07]} 13. bxc5 {[%emt 0:00:04]} Nxc5 {[%emt 0:00:28]} 14. Nd4 {[%emt 0:00:05]} Qd7 {[%emt 0:05:33] [#]} 15. a4 $146 {[%emt 0:02:26]} ({Predecessor:} 15. Rb1 Nfe4 16. N4b3 Rfd8 17. Nxc5 Bxc5 18. Nxe4 dxe4 19. Qb3 Bd5 20. Qc3 Bf8 21. Rfd1 Qe6 22. Qe3 a5 {½-½ Vescovi,G (2490)-Lima,D (2420) BRA-ch playoff 1997 (1)}) 15... Rfc8 {[%emt 0:02:22]} 16. Ba3 {[%emt 0:03:28]} Nxa4 {[%emt 0:19:02]} 17. Bxe7 {[%emt 0:00:11]} Nc3 {[%emt 0:00:06]} 18. Qb3 {[%emt 0:00:36]} Qxe7 {[%emt 0:00:05]} 19. Rfc1 {[%emt 0:06:34]} Nce4 {[%emt 0:02:36]} 20. Rxc8+ {[%emt 0:11:27]} (20. Nf5 {with more complications.} Qe5 21. Nxe4 dxe4 22. Nh6+) 20... Bxc8 {[%emt 0:01:02]} 21. Nxe4 {[%emt 0:01:35]} dxe4 {[%emt 0:00:25]} 22. e3 {[%emt 0:06:28]} h5 {[%emt 0:23:03]} 23. h4 {[%emt 0:04:07]} (23. Qc3 $11) 23... a5 $15 {[%emt 0:10:18][%cal Ba7a5,Ba5a4][%mdl 32]} 24. Qb5 {[%emt 0:06:04]} Bd7 {[%emt 0:01:43]} 25. Qb7 {[%emt 0:06:19]} Qe8 {[%emt 0:01:36]} 26. Bf1 {[%emt 0:03:27][%cal Bg2f1,Bf1c4,Bc4f7][%mdl 32]} Rb8 {[%emt 0:01:34]} 27. Qa7 {[%emt 0:02:18]} a4 {[%emt 0:00:18]} 28. Bc4 {[%emt 0:01:42]} Qf8 {[%emt 0:01:27]} ({Black should play} 28... Qc8 $17 29. Rc1 Qb7) 29. Ne2 {[%emt 0:09:57]} (29. Bd5 $1 $15) 29... Qb4 {[%emt 0:03:09] ...Rc8 would be deadly.} 30. Nf4 {[%emt 0:03:30][%cal Of4h5]} Qb6 {[%emt 0:03:45]} (30... Qb2 $142 31. Rd1 Be8) 31. Rxa4 $17 {[%emt 0:01:34]} Bxa4 {[%emt 0:04:08]} 32. Bxf7+ {[%emt 0:03:43] [#]} Kh7 $1 {[%emt 0:01:39] ( -> ...Qb1+)} 33. Qxa4 {[%emt 0:00:11] [#]} Kh6 {[%emt 0:03:11]} ({Black should try} 33... Qb5 $1 $17 {[%cal Rb5a4]} 34. Qxb5 Rxb5) 34. Kg2 $1 $11 {[%emt 0:02:20]} Qc5 {[%emt 0:01:32] Threatens to win with ...Rb2.} 35. Bg6 $2 {[%emt 0:01:20][%mdl 8192]} (35. Qa2 $11) 35... Qe5 $2 {[%emt 0:04:01]} (35... Rb2 $19 36. Bxh5 (36. Bxe4 $2 {loses.} Qxe3 37. Bc2 Qd2 $19) (36. Qa8 $2 Rxf2+ 37. Kh3 Rxf4 $19) 36... Nxh5 37. Qxe4 Nxf4+ 38. Qxf4+ Kg6 39. Qg4+ Kf6 40. Qf4+ Ke6 41. Qe4+ Qe5) 36. Qa6 {[%emt 0:01:31]} Rd8 {[%emt 0:02:32]} (36... Rb1 $11) 37. Bxh5 $16 {[%emt 0:02:24] Black must now prevent g4.} Qd6 {[%emt 0:01:28]} (37... Rd6 $2 38. Qc8 Nh7 39. Bf7 $18) 38. Qe2 {[%emt 0:00:38]} Qc6 $2 {[%emt 0:01:57]} (38... Nd5 $16) 39. g4 $2 {[%emt 0:01:16]} (39. Bg6 $18 {Hoping for g4.} Qd7 40. Bxe4) 39... g5 $2 {[%emt 0:00:34][%mdl 8192]} (39... Nxh5 $16 40. g5+ {[%mdl 64] Zwischenzug} Kh7 41. g6+ (41. Qxh5+ Kg8 $16) (41. Nxh5 Qe6 $14) 41... Kg8 42. Qxh5 Qf6 43. Qh7+ Kf8) 40. hxg5+ $18 {[%emt 0:00:52]} Kxg5 {[%emt 0:00:14]} 41. Qb2 {[%emt 0:17:33] Intending Qe5+ and mate.} Rd5 {[%emt 0:20:33] Against Qe5+} 42. Qb8 {[%emt 0:12:45]} Qd6 {[%emt 0:09:20]} 43. Qh8 {[%emt 0:00:32]} Qe7 {[%emt 0:01:51]} 44. Nxd5 {[%emt 0:06:48]} (44. Kg3 $142 Qc7 45. Bf7 Nh5+ 46. Qxh5+ (46. gxh5 Qxf7 47. Qa8 Rf5 $16) 46... Kf6 47. Qg6+ Ke7 48. Qe6+ Kf8 49. Qe8+ Kg7 50. Bxd5) 44... Nxd5 {[%emt 0:00:11][%mdl 4096] Endgame KQB-KQN. White is clearly winning.} 45. Qg8+ {[%emt 0:00:07]} Kh4 {[%emt 0:00:04]} 46. Qxd5 {[%emt 0:00:45]} Qf6 {[%emt 0:01:13]} 47. Qxe4 {[%emt 0:01:49]} Qe5 {[%emt 0:00:10]} 48. Qf3 {[%emt 0:01:19]} Qd5 {[%emt 0:00:18]} 49. e4 {[%emt 0:00:21]} Qd2 {[%emt 0:00:13]} 50. Qf6+ {[%emt 0:00:35] Artfully played by Ingvason.   Weighted Error Value: White=0.36/Black=0.63} 1-0

[Event "Icelandic Chess-ch 2023"]
[Site "Hafnarfjordur"]
[Date "2023.05.24"]
[Round "10.4"]
[White "Thorfinnsson, Bragi"]
[Black "Stefansson, Vignir Vatnar"]
[Result "0-1"]
[ECO "D12"]
[WhiteElo "2431"]
[BlackElo "2470"]
[Annotator "TA"]
[PlyCount "138"]
[EventDate "2023.05.13"]
[EventType "tourn"]
[EventCountry "ISL"]
[SourceTitle "playchess.com"]
[Source "ChessBase"]
[SourceQuality "1"]
[TimeControl "40/5400+30:1800+30"]

{[%evp 17,138,34,26,23,32,4,19,16,2,-6,-8,-6,0,-7,0,-26,6,0,8,5,21,0,0,-13,0,-14,-8,-16,-16,-39,-10,-16,-6,-20,-15,-41,-24,-31,-17,-17,-17,-17,-10,-17,-17,-31,-31,-35,-17,-17,-17,-17,-17,-17,-17,-22,-22,-23,0,-17,-8,-6,0,-12,-12,-6,-7,-15,-15,-15,-15,-19,0,-15,0,-22,-2,-43,-42,-39,0,-16,-7,-17,-16,-61,-49,-62,-64,-163,-60,-49,-68,-380,-300,-274,-272,-448,-415,-947,-806,-660,-668,-923,-841,-827,-827,-1217,-1114,-1266,-1157,-11493,-6508,-29968,-29968,-29965,-6740,-6079,-4702,-29974,-29974,-29965,-29967]} 1. d4 {[%emt 0:02:51]} d5 {[%emt 0:00:08]} 2. Nf3 {[%emt 0:00:23]} Nf6 {[%emt 0:00:10]} 3. e3 {[%emt 0:00:10]} Bf5 {[%emt 0:00:32]} 4. c4 {[%emt 0:00:23]} c6 {[%emt 0:03:13]} 5. Nc3 {[%emt 0:00:35]} e6 {[%emt 0:00:35]} 6. Nh4 {[%emt 0:00:30]} Be4 {[%emt 0:00:09]} 7. f3 {[%emt 0:00:19]} Bg6 {[%emt 0:00:04]} 8. Qb3 {[%emt 0:00:35]} Qb6 {[%emt 0:01:40]} 9. Nxg6 {[%emt 0:02:16]} hxg6 {[%emt 0:02:39]} 10. g3 {[%emt 0:06:21] D12: Slav Defence: 3 Nf3 Nf6 4 e3 Bf5.} Nbd7 {[%emt 0:01:02][%cal Bb8d7,Bd7f8,Bf8e6][%mdl 32] 10...Bd6 is vanishing.} 11. Bd2 {[%emt 0:01:03]} Be7 {[%emt 0:02:47]} 12. cxd5 {[%emt 0:15:42] The position is equal.} exd5 {[%emt 0:07:57] [#]} 13. Rc1 $146 {[%emt 0:12:31]} ({Predecessor:} 13. Kf2 g5 14. Be2 Nf8 15. Qxb6 axb6 16. Kg2 Ne6 17. h3 g6 18. Rhd1 b5 19. a4 b4 20. Na2 Rxa4 21. Rdc1 O-O 22. Bd1 Ra7 23. Nxb4 {½-½ Brunsek,I (2595)-Vassia,E (2611) W-ch25 final email 2009}) 13... Qxb3 {[%emt 0:04:44]} 14. axb3 {[%emt 0:00:17]} Bb4 {[%emt 0:00:06]} 15. Bd3 {[%emt 0:03:51]} Nf8 {[%emt 0:06:07]} 16. Na4 {[%emt 0:04:57]} Bxd2+ {[%emt 0:02:10]} 17. Kxd2 {[%emt 0:00:11]} Ne6 {[%emt 0:13:17]} 18. b4 {[%emt 0:02:46]} a6 {[%emt 0:00:06]} 19. Ke2 {[%emt 0:05:06]} g5 {[%emt 0:02:07]} 20. h3 {[%emt 0:02:16]} g6 {[%emt 0:00:30]} 21. Kf2 {[%emt 0:00:34]} Ke7 {[%emt 0:00:58]} 22. Kg2 {[%emt 0:03:27]} Nd7 {[%emt 0:00:29]} 23. Rhe1 {[%emt 0:07:27]} Kd6 {[%emt 0:04:14]} 24. Nc5 {[%emt 0:05:03]} Ndxc5 {[%emt 0:00:09]} 25. bxc5+ {[%emt 0:00:46]} Ke7 {[%emt 0:00:28]} 26. Ra1 {[%emt 0:01:31]} Rad8 {[%emt 0:01:04]} 27. Ra4 {[%emt 0:00:55]} Kd7 {[%emt 0:02:09]} 28. Rb4 {[%emt 0:01:29]} Kc7 {[%emt 0:00:09]} 29. Ra1 {[%emt 0:02:18]} f5 {[%emt 0:00:42]} 30. f4 {[%emt 0:03:24]} Rde8 {[%emt 0:02:42]} 31. Rh1 {[%emt 0:03:12]} gxf4 {[%emt 0:09:46]} 32. exf4 {[%emt 0:00:11]} Ng7 {[%emt 0:00:31]} (32... a5 $5 {[%cal Ra5b4]} 33. Ra4 Rb8 34. Rxa5 Nxd4 $11) 33. Ra1 {[%emt 0:02:44]} Nh5 {[%emt 0:04:58] Hoping for ...Re3.} 34. Ra3 {[%emt 0:00:45]} Nf6 {[%emt 0:03:10]} 35. Rab3 {[%emt 0:01:06]} Rb8 {[%emt 0:00:05]} 36. Bb1 {[%emt 0:01:45]} Rhe8 {[%emt 0:02:06] And now ...Re2+ would win.} 37. Kf2 {[%emt 0:00:13] Repels Re2+} Rh8 {[%emt 0:10:48] Strongly threatening ...a5.} 38. Kg2 {[%emt 0:00:48]} a5 {[%emt 0:01:40]} 39. Ra4 {[%emt 0:00:32]} b6 {[%emt 0:00:05]} 40. cxb6+ {[%emt 0:02:33]} Rxb6 {[%emt 0:00:05]} 41. Rxb6 {[%emt 0:30:31]} Kxb6 $11 {[%emt 0:30:05][%mdl 4096] Endgame KRB-KRN} 42. b4 {[%emt 0:03:05]} axb4 {[%emt 0:02:33]} 43. Rxb4+ {[%emt 0:00:57]} Kc7 {[%emt 0:00:00]} 44. Rb2 {[%emt 0:00:00]} Rg8 {[%emt 0:00:00]} 45. Kf3 {[%emt 0:00:00]} Rh8 {[%emt 0:00:00]} 46. Kg2 {[%emt 0:00:00]} Nh5 {[%emt 0:00:00]} 47. Bd3 {[%emt 0:00:00]} Ra8 {[%emt 0:00:00]} 48. Kf3 {[%emt 0:00:00]} Ra4 {[%emt 0:00:00]} 49. Ke3 {[%emt 0:00:00]} (49. g4 $5 {[%cal Rg4h5]} fxg4+ 50. hxg4 $11) 49... Ra3 {[%emt 0:00:00]} 50. Rg2 {[%emt 0:00:00]} Kd7 {[%emt 0:00:00]} 51. Rb2 {[%emt 0:00:00]} Nxg3 {[%emt 0:00:00]} 52. Rb7+ $1 {[%emt 0:00:00]} Kc8 {[%emt 0:00:00]} 53. Rh7 {[%emt 0:04:32]} (53. Rg7 $15) 53... Nh5 {[%emt 0:00:00]} ({Better is} 53... Ne4 $19 {Threatens to win with ...c5.} 54. Rh8+ Kd7 55. Rh7+ Ke6) 54. h4 $1 $15 {[%emt 0:00:04]} Kb8 {[%emt 0:00:00]} 55. Rf7 $2 {[%emt 0:00:53][%mdl 8192] [#] This move loses the game for White.} ({White must play} 55. Rd7 $1 $15) 55... Ra7 $1 $19 {[%emt 0:00:00]} 56. Rf8+ {[%emt 0:02:34]} Kc7 {[%emt 0:00:00]} 57. Rg8 $2 {[%emt 0:01:33]} (57. Rf7+ {is a better defense.} Kb6 58. Rxa7 Kxa7 59. Bf1) 57... Ra3 {[%emt 0:00:00]} 58. Rf8 {[%emt 0:00:24] [#]} (58. Rh8 $142 Nxf4 {[%mdl 64] Deflection} 59. Kxf4 Rxd3 60. Ke5) 58... Nxf4 $1 {[%emt 0:02:04][%mdl 576] Deflection} 59. Kxf4 {[%emt 0:00:05]} Rxd3 {[%emt 0:00:04] KR-KR} 60. Rf7+ {[%emt 0:01:14]} Kb6 {[%emt 0:00:08]} 61. Ke5 {[%emt 0:00:04]} Re3+ {[%emt 0:00:05]} 62. Kd6 {[%emt 0:00:15]} Kb5 {[%emt 0:01:11]} 63. h5 {[%emt 0:00:49]} gxh5 {[%emt 0:00:12][%cal Bg6h5,Bh5h4][%mdl 32] ...h4 would be deadly.} 64. Rxf5 {[%emt 0:00:02]} h4 {[%emt 0:01:31]} 65. Rh5 {[%emt 0:00:43]} Re4 {[%emt 0:01:35]} 66. Rh8 {[%emt 0:00:27]} Rxd4 {[%emt 0:00:07]} 67. Rb8+ {[%emt 0:00:05]} Kc4 {[%emt 0:00:03] ( -> ...Re4)} 68. Kxc6 {[%emt 0:00:05]} Rg4 {[%emt 0:00:18]} 69. Ra8 {[%emt 0:00:11]} Rg6+ {[%emt 0:00:06] Weighted Error Value: White=0.39/Black=0.08 (flawless)} 0-1

[Event "Icelandic Chess-ch 2023"]
[Site "Hafnarfjordur"]
[Date "2023.05.24"]
[Round "10.5"]
[White "Stefansson, Hannes"]
[Black "Hjartarson, Johann"]
[Result "0-1"]
[ECO "C78"]
[WhiteElo "2521"]
[BlackElo "2466"]
[Annotator "TA"]
[PlyCount "64"]
[EventDate "2023.05.13"]
[EventType "tourn"]
[EventCountry "ISL"]
[SourceTitle "playchess.com"]
[Source "ChessBase"]
[SourceQuality "1"]
[TimeControl "40/5400+30:1800+30"]

{[%evp 13,64,26,37,29,35,25,29,22,38,16,40,44,56,35,45,47,35,19,21,20,48,40,29,46,47,10,52,59,87,77,83,7,8,11,47,22,18,0,0,-89,-86,-118,-110,-157,-173,-289,-297,-340,-347,-1131,-1131,-1078,-1062]} 1. e4 {[%emt 0:00:08]} e5 {[%emt 0:00:12]} 2. Nf3 {[%emt 0:00:17]} Nc6 {[%emt 0:00:04]} 3. Bb5 {[%emt 0:00:38]} a6 {[%emt 0:00:07]} 4. Ba4 {[%emt 0:00:22]} Nf6 {[%emt 0:00:08]} 5. O-O {[%emt 0:00:22]} Bc5 {[%emt 0:00:21]} 6. c3 {[%emt 0:07:35]} O-O {[%emt 0:00:34]} 7. d4 {[%emt 0:03:55]} Ba7 {[%emt 0:00:24]} 8. Re1 {[%emt 0:01:25] C78: Ruy Lopez: Archangelsk and Möller Defences.} d6 {[%emt 0:08:15]} 9. h3 {[%emt 0:01:12]} b5 {[%emt 0:10:13]} 10. Bc2 {[%emt 0:00:41] White has an edge.} Re8 {[%emt 0:03:17]} 11. Be3 {[%emt 0:10:31]} Bb7 {[%emt 0:02:55]} 12. Nbd2 {[%emt 0:03:39]} h6 {[%emt 0:00:53]} 13. a3 {[%emt 0:06:44]} exd4 {[%emt 0:11:59]} 14. cxd4 {[%emt 0:00:41] [#]} Ne7 $146 {[%emt 0:00:20]} ({Predecessor:} 14... Na5 15. Bf4 Nc4 16. Nxc4 bxc4 17. d5 c6 18. dxc6 Bxc6 19. e5 dxe5 20. Nxe5 Bd5 {1-0 Forgacs,A (2148)-Toth,N (1937) Hello Sakk Cup Capablanca rapid 2021 (3)}) 15. b4 {[%emt 0:03:26]} Ng6 {[%emt 0:05:28][%cal Rb7e4]} 16. Qb1 {[%emt 0:00:54]} Nh5 {[%emt 0:01:40]} 17. Bd3 {[%emt 0:04:43]} Nhf4 {[%emt 0:03:39]} 18. Bf1 {[%emt 0:00:45]} Qd7 {[%emt 0:00:13]} 19. Kh2 {[%emt 0:03:57]} c5 {[%emt 0:05:24]} 20. g3 {[%emt 0:06:09]} Ne6 {[%emt 0:00:43][%cal Rc5d4]} 21. d5 {[%emt 0:00:31]} ({But not} 21. bxc5 $6 dxc5 22. d5 Nd4 $11) 21... Nd4 {[%emt 0:03:18] [#]} 22. Bxd4 {[%emt 0:00:51]} (22. a4 $1 $16) 22... cxd4 $11 {[%emt 0:00:04]} 23. Nb3 {[%emt 0:02:11]} (23. a4 {keeps more tension.} bxa4 24. Qc2 d3 25. Qxa4 Qxa4 26. Rxa4 Bxf2 27. Rea1) 23... Qe7 {[%emt 0:01:28]} 24. Qb2 {[%emt 0:08:29]} (24. a4 $5 {[%cal Ra4b5]}) 24... Qf6 {[%emt 0:01:35]} 25. Nfxd4 {[%emt 0:08:29]} (25. Nbxd4 $5 Rac8 26. Rad1 $14) 25... Ne5 $36 {[%emt 0:00:49][%cal Bg6e5,Be5c4,Bc4a3][%mdl 2080] And now ...Nf3+ would win. Black is more active.} 26. Qe2 {[%emt 0:16:11] Prevents Nf3+} (26. Re2 $11) 26... Nc4 $17 {[%emt 0:04:22]} 27. Rad1 {[%emt 0:00:16]} Bxd5 {[%emt 0:00:30][%mdl 64] [#] Pin} 28. f3 {[%emt 0:02:11]} ({White should try} 28. Bg2) 28... Nxa3 {[%emt 0:02:12] White must now prevent ...Rac8. Black is more active.} 29. Bg2 {[%emt 0:04:59]} (29. Qb2 $142 Bxb3 30. Qxb3) 29... Rac8 $19 {[%emt 0:04:03][%cal Oa3c2]} 30. Qa2 {[%emt 0:01:00]} Bxd4 {[%emt 0:05:44][%mdl 64] Pin} 31. exd5 $2 {[%emt 0:00:10] White is weak on the dark squares} (31. Qxa3 Bb2 32. Qa2) 31... Rxe1 {[%emt 0:00:30]} 32. Rxe1 {[%emt 0:00:06]} Rc2 {[%emt 0:01:27] Weighted Error Value: White=0.42/Black=0.09 (flawless)} 0-1